fUSD/lending_fUSD_20240919
["ID","MTS","AMOUNT","RATE_DAILY","PERIOD"]
[338539580,1726725043658,-500.0,0.00012896,2]
[338539582,1726725043667,-1864.93,0.00012896,2]
[338539584,1726725043677,-1903.16,0.00012896,2]
[338539586,1726725043687,-513.22,0.00012896,2]
[338539588,1726725043697,-3269.07,0.00012896,2]
[338539590,1726725043706,-500.0,0.00012896,2]
[338539592,1726725043716,-686.99,0.00012897,2]
[338539594,1726725043726,-251.43784433,0.00012897,2]
[338539596,1726725043735,-500.0,0.00012897,2]
[338539598,1726725043745,-558.69,0.00012897,2]
[338539600,1726725043755,-510.2723752,0.00012897,2]
[338539602,1726725043764,-500.0,0.00012897,2]
[338539604,1726725043776,-500.0,0.00012897,2]
[338539606,1726725043786,-500.0,0.00012897,2]
[338539608,1726725043796,-500.0,0.00012897,2]
[338539610,1726725043805,-541.67,0.00012897,2]
[338539612,1726725043815,-897.8,0.00012897,2]
[338539614,1726725043824,-1187.76,0.00012897,2]
[338539616,1726725043835,-794.02,0.00012897,2]
[338539617,1726725043844,-500.0,0.00012897,2]
[338539618,1726725043855,-576.51626237,0.00012897,2]
[338539619,1726725043864,-657.47,0.00012897,2]
[338539620,1726725043874,-500.0,0.00012897,2]
[338539621,1726725043884,-610.22201759,0.00012897,2]
[338539622,1726725043893,-594.05,0.00012897,2]
[338539623,1726725043902,-500.0,0.00012897,2]
[338539624,1726725043912,-976.02,0.00012897,2]
[338539625,1726725043921,-421.28943011,0.00012897,2]
[338539626,1726725043931,-500.0,0.00012897,2]
[338539627,1726725043940,-500.0,0.00012897,2]
[338539628,1726725043950,-1543.45,0.00012897,2]
[338539629,1726725043959,-500.0,0.00012897,2]
[338539630,1726725043968,-580.97,0.00012897,2]
[338539631,1726725043978,-500.0,0.00012897,2]
[338539632,1726725043987,-500.0,0.00012897,2]
[338539633,1726725043997,-500.0,0.00012897,2]
[338539634,1726725044006,-500.0,0.00012897,2]
[338539635,1726725044016,-500.0,0.00012897,2]
[338539636,1726725044027,-500.0,0.00012897,2]
[338539637,1726725044037,-500.0,0.00012897,2]
[338539638,1726725044047,-500.0,0.00012897,2]
[338539639,1726725044056,-500.0,0.00012897,2]
[338539640,1726725044066,-500.0,0.00012897,2]
[338539641,1726725044075,-500.0,0.00012897,2]
[338539642,1726725044085,-500.0,0.00012897,2]
[338539643,1726725044096,-500.0,0.00012897,2]
[338539644,1726725044107,-500.0,0.00012897,2]
[338539645,1726725044118,-500.0,0.00012897,2]
[338539646,1726725044128,-500.0,0.00012897,2]
[338539647,1726725044137,-500.0,0.00012897,2]
[338539649,1726725044148,-500.0,0.00012897,2]
[338539650,1726725044159,-769.04,0.00012897,2]
[338539652,1726725044169,-500.0,0.00012897,2]
[338539654,1726725044179,-991.41,0.00012897,2]
[338539656,1726725044188,-500.0,0.00012897,2]
[338539658,1726725044198,-500.0,0.00012897,2]
[338539660,1726725044208,-500.0,0.00012897,2]
[338539662,1726725044217,-500.0,0.00012897,2]
[338539664,1726725044227,-651.15,0.00012897,2]
[338539666,1726725044236,-500.0,0.00012897,2]
[338539668,1726725044246,-802.28,0.00012897,2]
[338539670,1726725044255,-672.72,0.00012897,2]
[338539672,1726725044264,-500.0,0.00012897,2]
[338539674,1726725044274,-500.0,0.00012897,2]
[338539676,1726725044284,-500.0,0.00012897,2]
[338539678,1726725044293,-583.71,0.00012897,2]
[338539680,1726725044303,-500.0,0.00012897,2]
[338539682,1726725044312,-1167.08,0.00012897,2]
[338539684,1726725044322,-904.2,0.00012897,2]
[338539686,1726725044331,-546.38749743,0.00012897,2]
[338539688,1726725044341,-500.0,0.00012897,2]
[338539690,1726725044352,-658.0,0.00012897,2]
[338539692,1726725044362,-500.0,0.00012897,2]
[338539694,1726725044372,-841.65,0.00012897,2]
[338539696,1726725044382,-1107.73,0.00012897,2]
[338539698,1726725044391,-916.33,0.00012897,2]
[338539700,1726725044401,-1073.65,0.00012897,2]
[338539702,1726725044411,-285.88018359,0.00012897,2]
[338539704,1726725044421,-500.0,0.00012897,2]
[338539706,1726725044431,-500.0,0.00012897,2]
[338539708,1726725044441,-500.0,0.00012897,2]
[338539711,1726725044452,-500.0,0.00012897,2]
[338539713,1726725044463,-500.0,0.00012897,2]
[338539715,1726725044473,-500.0,0.00012897,2]
[338539717,1726725044483,-1032.3,0.00012897,2]
[338539719,1726725044494,-500.0,0.00012897,2]
[338539721,1726725044505,-500.0,0.00012897,2]
[338539723,1726725044516,-544.56,0.00012897,2]
[338539725,1726725044527,-683.08,0.00012897,2]
[338539727,1726725044536,-316.91908359,0.00012897,2]
[338539729,1726725044546,-799.34,0.00012897,2]
[338539731,1726725044556,-837.4,0.00012897,2]
[338539734,1726725044565,-851.17,0.00012897,2]
[338539736,1726725044576,-1348.24,0.00012897,2]
[338539738,1726725044587,-500.0,0.00012897,2]
[338539740,1726725044598,-500.0,0.00012897,2]
[338539742,1726725044608,-500.0,0.00012897,2]
[338539744,1726725044620,-896.11,0.00012897,2]
[338539746,1726725044630,-500.0,0.00012897,2]
[338539749,1726725044642,-500.0,0.00012897,2]
[338539751,1726725044654,-639.75,0.00012897,2]
[338539753,1726725044665,-500.0,0.00012897,2]
[338539755,1726725044676,-500.0,0.00012897,2]
[338539757,1726725044695,-500.0,0.00012897,2]
[338539759,1726725044705,-500.0,0.00012897,2]
[338539761,1726725044714,-500.0,0.00012897,2]
[338539763,1726725044723,-748.03,0.00012897,2]
[338539765,1726725044732,-262.07,0.00012897,2]
[338539767,1726725044742,-500.0,0.00012897,2]
[338539769,1726725044751,-500.0,0.00012897,2]
[338539771,1726725044761,-269.07,0.00012897,2]
[338539773,1726725044770,-625.14,0.00012897,2]
[338539775,1726725044779,-500.0,0.00012897,2]
[338539777,1726725044790,-500.0,0.00012897,2]
[338539779,1726725044799,-185.19,0.00012897,2]
[338539781,1726725044809,-500.0,0.00012897,2]
[338539783,1726725044819,-500.0,0.00012897,2]
[338539785,1726725044828,-502.68,0.00012897,2]
[338539787,1726725044838,-500.0,0.00012897,2]
[338539789,1726725044847,-500.0,0.00012897,2]
[338539791,1726725044857,-500.0,0.00012897,2]
[338539793,1726725044867,-500.0,0.00012897,2]
[338539795,1726725044876,-783.92,0.00012897,2]
[338539797,1726725044886,-1026.77,0.00012897,2]
[338539799,1726725044895,-502.99,0.00012897,2]
[338539801,1726725044905,-500.0,0.00012897,2]
[338539803,1726725044915,-500.0,0.00012897,2]
[338539805,1726725044926,-500.0,0.00012897,2]
[338539807,1726725044938,-500.0,0.00012897,2]
[338539809,1726725044948,-936.96,0.00012897,2]
[338539843,1726725045258,-2062.59,0.00012897,2]
[338539845,1726725045275,-1608.27,0.00012897,2]
[338539847,1726725045285,-1021.19,0.00012897,2]
[338539849,1726725045296,-500.0,0.00012897,2]
[338539851,1726725045305,-791.54,0.00012897,2]
[338539853,1726725045317,-500.0,0.00012897,2]
[338539856,1726725045328,-1014.94,0.00012897,2]
[338539858,1726725045338,-500.0,0.00012897,2]
[338539860,1726725045348,-730.21,0.00012897,2]
[338539862,1726725045360,-500.0,0.00012897,2]
[338539863,1726725045370,-845.99,0.00012897,2]
[338539865,1726725045379,-500.0,0.00012897,2]
[338539867,1726725045389,-500.0,0.00012897,2]
[338539869,1726725045399,-763.58,0.00012898,2]
[338539871,1726725045409,-769.54,0.00012898,2]
[338539873,1726725045419,-500.0,0.00012898,2]
[338539875,1726725045431,-913.37,0.00012898,2]
[338539878,1726725045441,-500.0,0.00012898,2]
[338539879,1726725045450,-1136.44,0.000129,2]
[338539881,1726725045461,-176.81501871,0.000129,2]
[338539883,1726725045471,-163.41210931,0.000129,2]
[338539886,1726725045480,-151.34010265,0.000129,2]
[338539888,1726725045490,-4173.11032797,0.000129,2]
[338539890,1726725045499,-175.59598401,0.00012991,2]
[338539892,1726725045509,-310.46,0.00012993,2]
[338539894,1726725045519,-225.0,0.00012999,2]
[338539896,1726725045528,-126449.91918275,0.00013,2]
[338539898,1726725045538,-1035196.92876294,0.00013,2]
[338539956,1726725046265,-34918.7735145,0.00013,2]
[338539968,1726725046969,-9096.64373114,0.00013,2]
[338539969,1726725046981,-8947.21879473,0.00013,2]
[338539970,1726725046993,-8943.78386462,0.00013,2]
[338539971,1726725047006,-9077.54866152,0.00013,2]
[338539972,1726725047017,-8943.84023489,0.00013,2]
[338539973,1726725047646,-6231.84237897,0.00013,2]
[338539974,1726725048222,-852.5,0.00013,2]
[338539975,1726725049489,393.24,0.00010503,2]
[338539976,1726725067657,1852.42,0.00012375,2]
[338539977,1726725159615,2800.0,8.22e-05,2]
[338539978,1726725161604,23900.0,0.00012166,2]
[338539979,1726725161680,2800.0,9.59e-05,2]
[338539980,1726725163328,2800.0,0.0001096,2]
[338539981,1726725164942,2800.0,0.0001233,2]
[338539982,1726725178216,409.92,0.0001214,2]
[338539983,1726725233610,175.01,0.00012126,2]
[338539984,1726725240678,340.58,0.0001211,2]
[338539985,1726725313738,250.0,0.0001209,2]
[338539988,1726725550247,421.86233158,0.00012643,2]
[338539990,1726725555803,402.79,0.00010127,2]
[338539991,1726725556124,402.79,0.00012391,2]
[338539992,1726725575776,250.0,0.00012045,2]
[338539993,1726725576475,185.57,0.00012045,2]
[338539994,1726725672228,156.95,0.00010959,2]
[338539995,1726725744010,328.44,0.00012003,2]
[338539996,1726725798276,1000.0,0.0001199,2]
[338540001,1726726031763,421.86233158,0.00012738,2]
[338540002,1726726059710,185.57,0.00011989,2]
[338540003,1726726129986,250.0,0.00011976,2]
[338540004,1726726140881,376.94,0.00010058,2]
[338540005,1726726141238,376.94,0.00012322,2]
[338540029,1726726226491,157.18,0.00012037,2]
[338540052,1726726231923,-150.0,0.00012776,2]
[338540054,1726726231934,-227.7652,0.00012793,2]
[338540055,1726726231943,-373.62481507,0.00012793,2]
[338540056,1726726231955,-1734.92019129,0.00012793,2]
[338540057,1726726231964,-130.77230166,0.00012793,2]
[338540058,1726726231976,-169.22769834,0.00012793,2]
[338540059,1726726231985,-1757.70266972,0.00012794,2]
[338540060,1726726231996,-311.1478536,0.00012794,2]
[338540061,1726726232007,-298.3,0.00012794,2]
[338540062,1726726232019,-2329.20341479,0.00012794,2]
[338540063,1726726232030,-505.38615579,0.00012794,2]
[338540064,1726726232046,-4298.2605061,0.00012794,2]
[338540065,1726726232055,-3123.40147411,0.00012794,2]
[338540066,1726726232066,-462.57098659,0.00012794,2]
[338540067,1726726232078,-555.90330277,0.00012794,2]
[338540068,1726726232098,-1707.26723653,0.00012794,2]
[338540069,1726726232108,-29.21063108,0.00012844,2]
[338540070,1726726232140,-120.78936892,0.00012844,2]
[338540071,1726726232150,-150.0,0.0001285,2]
[338540072,1726726232159,-245.23455293,0.00012851,2]
[338540073,1726726232168,-150.0,0.0001287,2]
[338540074,1726726232179,-105.41225884,0.0001287,2]
[338540075,1726726232191,-327.85685687,0.0001287,2]
[338540076,1726726232203,-66.72088429,0.0001287,2]
[338540077,1726726232212,-909.75864896,0.00012883,2]
[338540078,1726726232224,-503.88900716,0.00012883,2]
[338540079,1726726232236,-4895.77372104,0.00012883,2]
[338540080,1726726232245,-152.23,0.00012884,2]
[338540081,1726726232255,-4213.96,0.00012892,2]
[338540082,1726726232264,-5371.56,0.00012892,2]
[338540083,1726726232275,-1044.14,0.00012892,2]
[338540084,1726726232284,-500.0,0.00012892,2]
[338540085,1726726232293,-194.78334656,0.00012892,2]
[338540086,1726726232303,-3226.68,0.00012892,2]
[338540087,1726726232312,-2003.73,0.00012892,2]
[338540088,1726726232321,-4301.42,0.00012892,2]
[338540089,1726726232331,-637.47,0.00012892,2]
[338540090,1726726232344,-2699.44,0.00012892,2]
[338540092,1726726232354,-3577.14,0.00012892,2]
[338540094,1726726232363,-9641.04,0.00012892,2]
[338540096,1726726232372,-500.0,0.00012892,2]
[338540098,1726726232382,-915.94,0.00012892,2]
[338540100,1726726232391,-418.73325761,0.00012892,2]
[338540102,1726726232400,-500.0,0.00012892,2]
[338540104,1726726232409,-6308.27,0.00012892,2]
[338540106,1726726232418,-4131.7,0.00012892,2]
[338540108,1726726232428,-1347.94,0.00012892,2]
[338540109,1726726232437,-1656.47,0.00012892,2]
[338540110,1726726232447,-2762.8,0.00012892,2]
[338540111,1726726232456,-603.23,0.00012892,2]
[338540112,1726726232465,-1185.65,0.00012892,2]
[338540113,1726726232475,-505.53,0.00012892,2]
[338540114,1726726232485,-2674.11,0.00012892,2]
[338540115,1726726232495,-500.0,0.00012892,2]
[338540116,1726726232504,-500.0,0.00012892,2]
[338540117,1726726232513,-744.96,0.00012892,2]
[338540118,1726726232522,-866.61,0.00012892,2]
[338540119,1726726232532,-614.78,0.00012892,2]
[338540120,1726726232541,-976.25,0.00012892,2]
[338540121,1726726232550,-3721.98,0.00012892,2]
[338540122,1726726232559,-500.0,0.00012893,2]
[338540123,1726726232568,-2066.91,0.00012893,2]
[338540124,1726726232577,-516.64,0.00012893,2]
[338540125,1726726232590,-500.0,0.00012893,2]
[338540126,1726726232604,-1201.98,0.00012893,2]
[338540127,1726726232613,-500.0,0.00012893,2]
[338540128,1726726232622,-500.0,0.00012893,2]
[338540129,1726726232631,-500.0,0.00012893,2]
[338540130,1726726232640,-500.0,0.00012893,2]
[338540131,1726726232649,-500.0,0.00012893,2]
[338540132,1726726232658,-500.0,0.00012893,2]
[338540133,1726726232667,-512.57,0.00012893,2]
[338540134,1726726232676,-500.0,0.00012893,2]
[338540135,1726726232685,-500.0,0.00012893,2]
[338540136,1726726232695,-558.96,0.00012893,2]
[338540137,1726726232704,-2161.61,0.00012893,2]
[338540138,1726726232714,-500.0,0.00012893,2]
[338540139,1726726232723,-586.54,0.00012893,2]
[338540140,1726726232732,-1310.5,0.00012893,2]
[338540141,1726726232741,-634.58,0.00012893,2]
[338540142,1726726232751,-1721.59,0.00012893,2]
[338540143,1726726232762,-775.65,0.00012893,2]
[338540144,1726726232771,-857.42,0.00012893,2]
[338540145,1726726232780,-500.0,0.00012893,2]
[338540146,1726726232789,-2270.05,0.00012893,2]
[338540147,1726726232798,-2169.17,0.00012893,2]
[338540148,1726726232807,-1194.74,0.00012893,2]
[338540149,1726726232817,-500.0,0.00012893,2]
[338540150,1726726232827,-500.0,0.00012893,2]
[338540151,1726726232837,-500.0,0.00012893,2]
[338540152,1726726232880,-500.0,0.00012893,2]
[338540153,1726726232890,-735.02,0.00012893,2]
[338540154,1726726232907,-504.31,0.00012893,2]
[338540155,1726726232917,-1540.64,0.00012893,2]
[338540156,1726726232927,-500.0,0.00012893,2]
[338540157,1726726232937,-3526.32,0.00012893,2]
[338540158,1726726232947,-500.0,0.00012893,2]
[338540159,1726726232957,-1017.05,0.00012893,2]
[338540160,1726726232967,-967.26,0.00012893,2]
[338540161,1726726232976,-743.3,0.00012893,2]
[338540162,1726726232985,-500.0,0.00012893,2]
[338540163,1726726232994,-500.0,0.00012893,2]
[338540164,1726726233004,-1402.77,0.00012893,2]
[338540165,1726726233013,-470.83,0.00012893,2]
[338540166,1726726233023,-500.0,0.00012893,2]
[338540167,1726726233033,-500.0,0.00012893,2]
[338540168,1726726233043,-2438.56,0.00012893,2]
[338540169,1726726233054,-1199.42,0.00012893,2]
[338540170,1726726233063,-1805.28,0.00012893,2]
[338540171,1726726233074,-500.0,0.00012893,2]
[338540172,1726726233087,-544.81,0.00012893,2]
[338540173,1726726233100,-562.56,0.00012893,2]
[338540174,1726726233109,-500.0,0.00012893,2]
[338540175,1726726233119,-1458.08,0.00012893,2]
[338540176,1726726233128,-500.0,0.00012893,2]
[338540177,1726726233139,-532.66,0.00012893,2]
[338540178,1726726233149,-526.98,0.00012893,2]
[338540179,1726726233158,-500.0,0.00012893,2]
[338540180,1726726233169,-500.0,0.00012893,2]
[338540181,1726726233180,-542.11,0.00012893,2]
[338540182,1726726233190,-500.0,0.00012893,2]
[338540183,1726726233201,-1725.83,0.00012893,2]
[338540184,1726726233210,-947.81,0.00012893,2]
[338540185,1726726233219,-959.06,0.00012893,2]
[338540186,1726726233229,-1438.42,0.00012893,2]
[338540187,1726726233239,-500.0,0.00012893,2]
[338540188,1726726233249,-1603.04,0.00012893,2]
[338540189,1726726233259,-500.0,0.00012893,2]
[338540190,1726726233269,-500.0,0.00012893,2]
[338540191,1726726233278,-509.88,0.00012893,2]
[338540192,1726726233288,-869.39,0.00012893,2]
[338540193,1726726233297,-500.0,0.00012893,2]
[338540194,1726726233307,-500.0,0.00012893,2]
[338540195,1726726233317,-500.0,0.00012893,2]
[338540196,1726726233327,-1537.55,0.00012893,2]
[338540197,1726726233337,-872.94,0.00012893,2]
[338540198,1726726233348,-500.0,0.00012893,2]
[338540199,1726726233358,-721.03,0.00012893,2]
[338540200,1726726233367,-1632.1,0.00012893,2]
[338540201,1726726233377,-500.0,0.00012893,2]
[338540202,1726726233387,-624.03,0.00012893,2]
[338540203,1726726233396,-500.0,0.00012893,2]
[338540204,1726726233406,-500.0,0.00012893,2]
[338540205,1726726233415,-823.62,0.00012893,2]
[338540206,1726726233426,-500.0,0.00012893,2]
[338540207,1726726233435,-500.0,0.00012893,2]
[338540208,1726726233445,-500.0,0.00012893,2]
[338540209,1726726233455,-1347.1,0.00012893,2]
[338540210,1726726233465,-500.0,0.00012893,2]
[338540211,1726726233474,-915.08,0.00012893,2]
[338540212,1726726233484,-1061.37,0.00012893,2]
[338540213,1726726233493,-500.0,0.00012893,2]
[338540214,1726726233503,-500.0,0.00012893,2]
[338540215,1726726233512,-500.0,0.00012893,2]
[338540216,1726726233522,-500.0,0.00012893,2]
[338540217,1726726233531,-500.0,0.00012893,2]
[338540218,1726726233541,-1882.9,0.00012893,2]
[338540219,1726726233550,-500.0,0.00012893,2]
[338540220,1726726233559,-500.0,0.00012893,2]
[338540221,1726726233569,-500.0,0.00012893,2]
[338540222,1726726233578,-629.21,0.00012893,2]
[338540223,1726726233589,-570.22,0.00012893,2]
[338540224,1726726233599,-1302.03,0.00012893,2]
[338540225,1726726233609,-500.0,0.00012893,2]
[338540226,1726726233619,-500.0,0.00012893,2]
[338540227,1726726233628,-500.0,0.00012893,2]
[338540228,1726726233638,-1111.24,0.00012893,2]
[338540229,1726726233648,-1004.44,0.00012893,2]
[338540230,1726726233658,-500.0,0.00012893,2]
[338540231,1726726233667,-1249.44,0.00012893,2]
[338540232,1726726233677,-1668.61,0.00012893,2]
[338540233,1726726233686,-500.0,0.00012893,2]
[338540234,1726726233696,-1484.77,0.00012893,2]
[338540235,1726726233706,-500.0,0.00012893,2]
[338540236,1726726233715,-500.0,0.00012893,2]
[338540237,1726726233725,-500.0,0.00012893,2]
[338540238,1726726233734,-644.37916321,0.00012893,2]
[338540239,1726726233744,-1349.5,0.00012893,2]
[338540240,1726726233754,-500.0,0.00012893,2]
[338540241,1726726233764,-500.06,0.00012893,2]
[338540242,1726726233773,-640.31,0.00012893,2]
[338540243,1726726233783,-1765.5,0.00012893,2]
[338540244,1726726234159,-852.28,0.00012893,2]
[338540245,1726726234170,-671.43,0.00012893,2]
[338540246,1726726234180,-500.0,0.00012893,2]
[338540247,1726726234190,-1741.55,0.00012893,2]
[338540248,1726726234200,-500.0,0.00012893,2]
[338540249,1726726234209,-500.0,0.00012893,2]
[338540250,1726726234219,-273.37701397,0.00012893,2]
[338540251,1726726234229,-500.0,0.00012893,2]
[338540252,1726726234238,-519.69,0.00012893,2]
[338540253,1726726234248,-802.29,0.00012893,2]
[338540254,1726726234258,-500.0,0.00012893,2]
[338540255,1726726234268,-500.0,0.00012893,2]
[338540256,1726726234277,-500.0,0.00012893,2]
[338540257,1726726234287,-1105.83,0.00012893,2]
[338540258,1726726234296,-868.76,0.00012893,2]
[338540259,1726726234306,-500.0,0.00012893,2]
[338540260,1726726234316,-511.05,0.00012893,2]
[338540261,1726726234326,-1741.26,0.00012893,2]
[338540262,1726726234336,-500.0,0.00012893,2]
[338540263,1726726234346,-500.0,0.00012893,2]
[338540264,1726726234356,-1797.8,0.00012893,2]
[338540265,1726726234365,-500.0,0.00012893,2]
[338540266,1726726234374,-500.0,0.00012893,2]
[338540267,1726726234384,-1021.57,0.00012893,2]
[338540268,1726726234394,-1011.08,0.00012893,2]
[338540269,1726726234403,-621.3,0.00012893,2]
[338540270,1726726234412,-500.0,0.00012893,2]
[338540271,1726726234422,-514.67,0.00012893,2]
[338540272,1726726234432,-500.0,0.00012893,2]
[338540273,1726726234441,-500.0,0.00012893,2]
[338540274,1726726234452,-500.0,0.00012893,2]
[338540275,1726726234462,-500.0,0.00012893,2]
[338540276,1726726234471,-500.0,0.00012893,2]
[338540277,1726726234481,-1994.54,0.00012893,2]
[338540278,1726726234491,-500.0,0.00012893,2]
[338540279,1726726234501,-2727.27,0.00012893,2]
[338540280,1726726234511,-888.01,0.00012893,2]
[338540281,1726726234521,-500.0,0.00012893,2]
[338540282,1726726234532,-583.36,0.00012893,2]
[338540283,1726726234541,-500.0,0.00012893,2]
[338540284,1726726234551,-972.0,0.00012893,2]
[338540285,1726726234561,-500.0,0.00012893,2]
[338540286,1726726234571,-1153.94,0.00012893,2]
[338540287,1726726234580,-500.0,0.00012893,2]
[338540288,1726726234591,-500.0,0.00012893,2]
[338540289,1726726234600,-2844.2,0.00012893,2]
[338540290,1726726234610,-500.0,0.00012893,2]
[338540291,1726726234619,-265.3,0.00012893,2]
[338540292,1726726234629,-500.0,0.00012893,2]
[338540293,1726726234639,-1137.49,0.00012893,2]
[338540294,1726726234649,-612.93,0.00012893,2]
[338540295,1726726234659,-1447.1,0.00012893,2]
[338540296,1726726234668,-1311.45,0.00012893,2]
[338540297,1726726234679,-500.0,0.00012893,2]
[338540298,1726726234689,-315.86,0.00012893,2]
[338540299,1726726234698,-1309.73,0.00012893,2]
[338540300,1726726234709,-500.0,0.00012893,2]
[338540301,1726726234719,-1373.59,0.00012893,2]
[338540302,1726726234728,-648.83,0.00012893,2]
[338540303,1726726234738,-500.0,0.00012893,2]
[338540304,1726726234747,-2185.77,0.00012893,2]
[338540305,1726726234757,-745.47,0.00012893,2]
[338540306,1726726234767,-2526.57,0.00012893,2]
[338540307,1726726234776,-780.4,0.00012893,2]
[338540308,1726726234786,-703.21,0.00012893,2]
[338540309,1726726234795,-2352.46,0.00012893,2]
[338540310,1726726234805,-617.37,0.00012893,2]
[338540311,1726726234814,-500.0,0.00012893,2]
[338540312,1726726234824,-500.0,0.00012893,2]
[338540313,1726726234834,-758.69,0.00012893,2]
[338540314,1726726234843,-980.72,0.00012893,2]
[338540315,1726726234852,-1192.44,0.00012893,2]
[338540316,1726726234862,-606.78,0.00012893,2]
[338540317,1726726234871,-1532.45,0.00012893,2]
[338540318,1726726234880,-500.0,0.00012893,2]
[338540319,1726726234890,-552.07847756,0.00012893,2]
[338540320,1726726234899,-500.0,0.00012893,2]
[338540321,1726726234909,-500.0,0.00012893,2]
[338540322,1726726234918,-4696.05,0.00012893,2]
[338540323,1726726234927,-568.98,0.00012893,2]
[338540324,1726726234937,-671.48,0.00012893,2]
[338540325,1726726234946,-570.68,0.00012893,2]
[338540326,1726726234955,-414.91291922,0.00012893,2]
[338540327,1726726234965,-500.0,0.00012893,2]
[338540328,1726726234974,-500.0,0.00012893,2]
[338540329,1726726234984,-500.0,0.00012893,2]
[338540330,1726726234993,-500.0,0.00012893,2]
[338540331,1726726235002,-739.77,0.00012893,2]
[338540332,1726726235012,-500.0,0.00012893,2]
[338540333,1726726235021,-1868.37,0.00012893,2]
[338540334,1726726235030,-500.0,0.00012893,2]
[338540335,1726726235039,-500.0,0.00012893,2]
[338540336,1726726235049,-500.0,0.00012893,2]
[338540337,1726726235058,-750.04,0.00012893,2]
[338540338,1726726235067,-500.0,0.00012893,2]
[338540339,1726726235077,-15085.63,0.00012893,2]
[338540340,1726726235088,-500.0,0.00012893,2]
[338540341,1726726235101,-500.0,0.00012893,2]
[338540342,1726726235110,-3366.08,0.00012893,2]
[338540343,1726726235120,-500.0,0.00012893,2]
[338540344,1726726235130,-1209.7,0.00012893,2]
[338540345,1726726235141,-396.89,0.00012893,2]
[338540346,1726726235150,-1242.69,0.00012893,2]
[338540347,1726726235159,-500.0,0.00012893,2]
[338540348,1726726235170,-521.27,0.00012893,2]
[338540349,1726726235180,-500.0,0.00012893,2]
[338540350,1726726235189,-500.0,0.00012893,2]
[338540351,1726726235199,-500.0,0.00012893,2]
[338540352,1726726235209,-1446.6,0.00012893,2]
[338540353,1726726235219,-500.0,0.00012893,2]
[338540354,1726726235229,-755.19,0.00012893,2]
[338540355,1726726235238,-500.0,0.00012893,2]
[338540356,1726726235248,-500.0,0.00012893,2]
[338540357,1726726235258,-33358.28,0.00012893,2]
[338540358,1726726235268,-1655.08,0.00012893,2]
[338540359,1726726235277,-672.35,0.00012893,2]
[338540360,1726726235287,-500.0,0.00012893,2]
[338540361,1726726235296,-500.0,0.00012893,2]
[338540362,1726726235306,-500.0,0.00012893,2]
[338540363,1726726235315,-2410.84,0.00012893,2]
[338540364,1726726235325,-500.0,0.00012893,2]
[338540365,1726726235334,-789.21,0.00012893,2]
[338540366,1726726235344,-500.0,0.00012893,2]
[338540367,1726726235354,-500.0,0.00012893,2]
[338540368,1726726235364,-500.0,0.00012893,2]
[338540369,1726726235373,-3611.03,0.00012893,2]
[338540370,1726726235382,-959.36,0.00012893,2]